fUST/lending_fUST_20250130
["ID","MTS","AMOUNT","RATE_DAILY","PERIOD"]
[350922816,1738200936782,-500.0,0.00016438,2]
[350922817,1738200936808,-500.0,0.00016438,2]
[350922818,1738200936831,-500.0,0.00016438,2]
[350922819,1738200936857,-222.60415752,0.00016438,2]
[350922820,1738200936882,-500.9027951,0.00016438,2]
[350922821,1738200936905,-500.0,0.00016438,2]
[350922822,1738200936929,-500.0,0.00016438,2]
[350922823,1738200936953,-500.0,0.00016438,2]
[350922824,1738200936977,-500.0,0.00016438,2]
[350922825,1738200937000,-477.78907011,0.00016438,2]
[350922826,1738200937204,-500.0,0.00016438,2]
[350922827,1738200937229,-500.0,0.00016438,2]
[350922828,1738200937252,-500.0,0.00016438,2]
[350922829,1738200937276,-500.0,0.00016438,2]
[350922830,1738200937302,-500.0,0.00016438,2]
[350922831,1738200937325,-254.61073593,0.00016438,2]
[350922832,1738200937349,-500.0,0.00016438,2]
[350922833,1738200937372,-500.0,0.00016438,2]
[350922834,1738200937397,-500.0,0.00016438,2]
[350922835,1738200937420,-500.0,0.00016438,2]
[350922836,1738200937445,-500.0,0.00016438,2]
[350922837,1738200937470,-500.0,0.00016438,2]
[350922838,1738200937496,-501.41327211,0.00016438,2]
[350922839,1738200937520,-500.0,0.00016438,2]
[350922840,1738200937544,-500.0,0.00016438,2]
[350922841,1738200937570,-500.0,0.00016438,2]
[350922842,1738200937595,-500.0,0.00016438,2]
[350922843,1738200937619,-500.0,0.00016438,2]
[350922844,1738200937646,-500.0,0.00016438,2]
[350922845,1738200937672,-500.0,0.00016438,2]
[350922846,1738200937698,-500.0,0.00016438,2]
[350922847,1738200937723,-500.0,0.00016438,2]
[350922848,1738200937749,-500.0,0.00016438,2]
[350922849,1738200937774,-500.0,0.00016438,2]
[350922850,1738200937799,-500.0,0.00016438,2]
[350922851,1738200937829,-500.0,0.00016438,2]
[350922852,1738200937852,-543.18659799,0.00016438,2]
[350922853,1738200937877,-500.0,0.00016438,2]
[350922854,1738200937902,-500.0,0.00016438,2]
[350922855,1738200937926,-500.0,0.00016438,2]
[350922856,1738200937950,-500.0,0.00016438,2]
[350922857,1738200937973,-500.0,0.00016438,2]
[350922858,1738200937997,-500.0,0.00016438,2]
[350922859,1738200938021,-500.0,0.00016438,2]
[350922860,1738200938047,-500.0,0.00016438,2]
[350922861,1738200938074,-500.0,0.00016438,2]
[350922862,1738200938102,-500.0,0.00016438,2]
[350922863,1738200938127,-500.0,0.00016438,2]
[350922864,1738200938151,-242.86977413,0.00016438,2]
[350922865,1738200938178,-862.44,0.00016438,2]
[350922866,1738200938203,-500.0,0.00016438,2]
[350922867,1738200938228,-500.0,0.00016438,2]
[350922868,1738200938253,-500.0,0.00016438,2]
[350922869,1738200938281,-949.11,0.00016438,2]
[350922870,1738200938306,-500.0,0.00016438,2]
[350922871,1738200938329,-500.0,0.00016438,2]
[350922872,1738200938352,-500.0,0.00016438,2]
[350922873,1738200938376,-504.29222781,0.00016438,2]
[350922874,1738200938401,-500.0,0.00016438,2]
[350922875,1738200938425,-500.0,0.00016438,2]
[350922876,1738200938449,-500.0,0.00016438,2]
[350922877,1738200938473,-418.76075296,0.00016438,2]
[350922878,1738200938497,-500.0,0.00016438,2]
[350922879,1738200938522,-500.0,0.00016438,2]
[350922880,1738200938547,-500.0,0.00016438,2]
[350922881,1738200938572,-952.88,0.00016438,2]
[350922882,1738200938596,-154.16683933,0.00016438,2]
[350922883,1738200938620,-510.44720274,0.00016438,2]
[350922884,1738200938645,-505.68281981,0.00016438,2]
[350922885,1738200938669,-496.70251761,0.00016438,2]
[350922886,1738200938695,-510.41337052,0.00016438,2]
[350922887,1738200938719,-500.0,0.00016438,2]
[350922888,1738200938744,-505.32496573,0.00016438,2]
[350922889,1738200938768,-500.0,0.00016438,2]
[350922890,1738200938794,-522.79,0.00016438,2]
[350922891,1738200938820,-547.91,0.00016438,2]
[350922892,1738200938845,-500.0,0.00016438,2]
[350922893,1738200938873,-226.96770789,0.00016438,2]
[350922894,1738200938900,-515.56,0.00016438,2]
[350922895,1738200938925,-500.0,0.00016438,2]
[350922896,1738200938949,-500.0,0.00016438,2]
[350922897,1738200938973,-500.0,0.00016438,2]
[350922898,1738200938997,-500.0,0.00016438,2]
[350922899,1738200939022,-500.0,0.00016438,2]
[350922900,1738200939045,-513.22212676,0.00016438,2]
[350922901,1738200939071,-500.0,0.00016438,2]
[350922902,1738200939097,-1067.71,0.00016438,2]
[350922903,1738200939122,-18782.46248228,0.00016438,2]
[350922907,1738201092559,168.472364,0.00013973,2]
[350922909,1738201156354,634.6,0.0002245,120]
[350922911,1738201178109,0.03217505,0.000224,120]
[350923016,1738201838343,-508.28073038,0.00015164,2]
[350923017,1738201838353,-300.0,0.00015469,2]
[350923018,1738201838363,-138.4109686,0.0001547,2]
[350923019,1738201838419,-1276.2813817,0.0001547,2]
[350923027,1738201840446,-1019.0,0.0001547,2]
[350923028,1738201840518,-422.53202834,0.0001547,2]
[350923029,1738201840712,-2099.02345567,0.0001547,2]
[350923069,1738201846509,-6322.47898119,0.0001547,2]
[350923071,1738201846519,-500.0,0.00016278,2]
[350923073,1738201846529,-906.16917553,0.00016338,2]
[350923076,1738201846539,-501.68004131,0.00016438,2]
[350923078,1738201846548,-501.59284762,0.00016438,2]
[350923079,1738201846558,-503.18806657,0.00016438,2]
[350923081,1738201846567,-401.0798436,0.00016438,2]
[350923083,1738201846578,-505.88830982,0.00016438,2]
[350923085,1738201846588,-500.0,0.00016438,2]
[350923088,1738201846598,-219.83609308,0.00016438,2]
[350923089,1738201846607,-512.05267636,0.00016438,2]
[350923091,1738201846617,-509.23514722,0.00016438,2]
[350923093,1738201846626,-506.92399593,0.00016438,2]
[350923095,1738201846636,-514.42056378,0.00016438,2]
[350923097,1738201846646,-502.29627135,0.00016438,2]
[350923099,1738201846656,-515.93328699,0.00016438,2]
[350923101,1738201846666,-506.12417368,0.00016438,2]
[350923103,1738201846675,-500.0,0.00016438,2]
[350923105,1738201846685,-503.33013904,0.00016438,2]
[350923107,1738201846695,-500.0,0.00016438,2]
[350923109,1738201846704,-507.37376676,0.00016438,2]
[350923111,1738201846715,-506.55056781,0.00016438,2]
[350923114,1738201846726,-501.45355809,0.00016438,2]
[350923115,1738201846735,-518.79131857,0.00016438,2]
[350923117,1738201846744,-296.65303293,0.00016438,2]
[350923119,1738201846753,-500.0,0.00016438,2]
[350923121,1738201846763,-500.0,0.00016438,2]
[350923123,1738201846772,-514.29898633,0.00016438,2]
[350923125,1738201846782,-500.0,0.00016438,2]
[350923127,1738201846791,-526.2900028,0.00016438,2]
[350923129,1738201846801,-500.0,0.00016438,2]
[350923131,1738201846810,-500.0,0.00016438,2]
[350923133,1738201846819,-504.86881259,0.00016438,2]
[350923135,1738201846829,-652.31,0.00016438,2]
[350923137,1738201846838,-504.34434291,0.00016438,2]
[350923139,1738201846848,-503.985003,0.00016438,2]
[350923141,1738201846857,-545.08213105,0.00016438,2]
[350923143,1738201846867,-506.03983007,0.00016438,2]
[350923145,1738201846878,-505.4250359,0.00016438,2]
[350923147,1738201846888,-515.56592366,0.00016438,2]
[350923149,1738201846898,-500.0,0.00016438,2]
[350923151,1738201846908,-121.36846606,0.00016438,2]
[350923281,1738202013583,167.87545,0.00013973,2]
[350923297,1738202856073,167.081001,0.00013973,2]
[350923370,1738203033061,-500.0,0.00015164,2]
[350923372,1738203033071,-154.3518878,0.000161,2]
[350923374,1738203033080,-239.9180001,0.00016273,2]
[350923376,1738203033090,-464.59655583,0.00016338,2]
[350923378,1738203033101,-386.40126098,0.00016338,2]
[350923380,1738203033110,-150.0,0.000164,2]
[350923382,1738203033120,-300.0,0.00016436,2]
[350923384,1738203033129,-607.80448977,0.00016437,2]
[350923386,1738203033139,-500.0,0.00016437,2]
[350923388,1738203033148,-334.0374144,0.00016437,2]
[350923390,1738203033158,-500.0,0.00016437,2]
[350923392,1738203033168,-506.67256678,0.00016437,2]
[350923393,1738203033178,-218.42686282,0.00016437,2]
[350923395,1738203033188,-651.01858948,0.00016437,2]
[350923397,1738203033200,-500.0,0.00016437,2]
[350923399,1738203033210,-548.93697755,0.00016437,2]
[350923401,1738203033220,-557.46556549,0.00016437,2]
[350923403,1738203033230,-114.49122935,0.00016437,2]
[350923492,1738203040721,-396.61,0.0001626,2]
[350923493,1738203040731,-385.50877065,0.00016437,2]
[350923494,1738203040741,-913.17,0.00016438,2]
[350923495,1738203040751,-518.4840031,0.00016438,2]
[350923496,1738203040760,-500.0,0.00016438,2]
[350923497,1738203040770,-500.0,0.00016438,2]
[350923498,1738203040780,-298.30717836,0.00016438,2]
[350923499,1738203040791,-111.34387166,0.00016438,2]
[350923500,1738203040803,-388.65612834,0.00016438,2]
[350923501,1738203040813,-500.0,0.00016438,2]
[350923502,1738203040823,-500.0,0.00016438,2]
[350923503,1738203040832,-506.53333395,0.00016438,2]
[350923504,1738203040842,-500.0,0.00016438,2]
[350923505,1738203040852,-500.0,0.00016438,2]
[350923506,1738203040861,-186.53144462,0.00016438,2]
[350923699,1738203046708,-312.03794695,0.00016438,2]
[350923700,1738203046722,-1.43060843,0.00016438,2]
[350923701,1738203046732,-500.0,0.00016438,2]
[350923702,1738203046746,-500.0,0.00016438,2]
[350923703,1738203046761,-500.0,0.00016438,2]
[350923704,1738203046771,-500.0,0.00016438,2]
[350923705,1738203046781,-500.0,0.00016438,2]
[350923706,1738203046791,-502.55463291,0.00016438,2]
[350923707,1738203046800,-641.66,0.00016438,2]
[350923708,1738203046810,-502.73434885,0.00016438,2]
[350923709,1738203046820,-358.81739844,0.00016438,2]
[350923710,1738203046829,-725.88,0.00016438,2]
[350923711,1738203046839,-500.0,0.00016438,2]
[350923712,1738203046848,-500.0,0.00016438,2]
[350923713,1738203046858,-511.21125214,0.00016438,2]
[350923714,1738203046867,-507.66398135,0.00016438,2]
[350923715,1738203046877,-509.05176861,0.00016438,2]
[350923716,1738203046887,-500.0,0.00016438,2]
[350923717,1738203046896,-500.0,0.00016438,2]
[350923718,1738203046906,-518.39005562,0.00016438,2]
[350923719,1738203046915,-510.55226144,0.00016438,2]
[350923720,1738203046925,-456.88314076,0.00016438,2]
[350923721,1738203046935,-508.89471112,0.00016438,2]
[350923722,1738203046944,-513.00008235,0.00016438,2]
[350923723,1738203046953,-500.0,0.00016438,2]
[350923724,1738203046962,-500.0,0.00016438,2]
[350923725,1738203046972,-500.0,0.00016438,2]
[350923726,1738203046982,-500.0,0.00016438,2]
[350923727,1738203046992,-500.0,0.00016438,2]
[350923728,1738203047001,-514.6803724,0.00016438,2]
[350923729,1738203047011,-500.0,0.00016438,2]
[350923730,1738203047020,-500.0,0.00016438,2]
[350923731,1738203047029,-562.07347911,0.00016438,2]
[350923732,1738203047039,-185.44803579,0.00016438,2]
[350923733,1738203047049,-515.50974625,0.00016438,2]
[350923734,1738203047058,-590.14,0.00016438,2]
[350923735,1738203047068,-513.24393217,0.00016438,2]
[350923736,1738203047078,-442.16265657,0.00016438,2]
[350923737,1738203047088,-500.0,0.00016438,2]
[350923738,1738203047099,-508.04577323,0.00016438,2]
[350923739,1738203047108,-305.73491047,0.00016438,2]
[350923740,1738203047118,-510.11064869,0.00016438,2]
[350923741,1738203047128,-508.67237825,0.00016438,2]
[350923742,1738203047137,-500.0,0.00016438,2]
[350923743,1738203047147,-533.17058194,0.00016438,2]
[350923744,1738203047157,-500.0,0.00016438,2]
[350923745,1738203047166,-509.71613502,0.00016438,2]
[350923746,1738203047176,-508.30025795,0.00016438,2]
[350923747,1738203047186,-500.0,0.00016438,2]
[350923748,1738203047195,-500.0,0.00016438,2]
[350923749,1738203047205,-500.0,0.00016438,2]
[350923750,1738203047216,-500.0,0.00016438,2]
[350923751,1738203047226,-500.0,0.00016438,2]
[350923752,1738203047235,-500.0,0.00016438,2]
[350923753,1738203047244,-1104.53,0.00016438,2]
[350923754,1738203047254,-501.92564006,0.00016438,2]
[350923755,1738203047263,-502.36083087,0.00016438,2]
[350923756,1738203047272,-502.76708689,0.00016438,2]
[350923757,1738203047282,-500.0,0.00016438,2]
[350923758,1738203047291,-500.0,0.00016438,2]
[350923759,1738203047301,-500.0,0.00016438,2]
[350923760,1738203047311,-500.0,0.00016438,2]
[350923761,1738203047321,-501.68656011,0.00016438,2]
[350923762,1738203047331,-506.05864388,0.00016438,2]
[350923763,1738203047343,-548.82,0.00016438,2]
[350923764,1738203047352,-502.40044109,0.00016438,2]
[350923765,1738203047362,-501.34353967,0.00016438,2]
[350923766,1738203047372,-510.34636125,0.00016438,2]
[350923767,1738203047382,-512.8260316,0.00016438,2]
[350923768,1738203047392,-500.0,0.00016438,2]
[350923769,1738203047402,-487.96883517,0.00016438,2]
[350923770,1738203047414,-516.70884273,0.00016438,2]
[350923771,1738203047424,-516.47202634,0.00016438,2]
[350923772,1738203047433,-500.0,0.00016438,2]
[350923773,1738203047442,-509.65387411,0.00016438,2]
[350923774,1738203047451,-504.92931895,0.00016438,2]
[350923775,1738203047461,-500.0,0.00016438,2]
[350923776,1738203047471,-500.0,0.00016438,2]
[350923777,1738203047481,-500.0,0.00016438,2]
[350923778,1738203047491,-1925.75,0.00016438,2]
[350923779,1738203047501,-503.86893817,0.00016438,2]
[350923780,1738203047510,-2030.18,0.00016438,2]
[350923781,1738203047519,-838.06,0.00016438,2]
[350923782,1738203047529,-500.0,0.00016438,2]
[350923783,1738203047539,-500.0,0.00016438,2]
[350923784,1738203047549,-500.0,0.00016438,2]
[350923785,1738203047558,-564.57,0.00016438,2]
[350923786,1738203047568,-7192.12,0.00016438,2]
[350923787,1738203047578,-505.55504595,0.00016438,2]
[350923788,1738203047587,-510.59839989,0.00016438,2]
[350923789,1738203047597,-500.0,0.00016438,2]
[350923790,1738203047607,-1106.6,0.00016438,2]
[350923791,1738203047616,-500.0,0.00016438,2]
[350923792,1738203047625,-1350.04,0.00016438,2]
[350923793,1738203047634,-557.55,0.00016438,2]
[350923794,1738203047644,-570.4,0.00016438,2]
[350923795,1738203047653,-1480.31,0.00016438,2]
[350923796,1738203047662,-505.90379924,0.00016438,2]
[350923797,1738203047673,-500.0,0.00016438,2]
[350923798,1738203047682,-505.70031755,0.00016438,2]
[350923799,1738203047692,-2322.83,0.00016438,2]
[350923800,1738203047701,-588.43,0.00016438,2]
[350923801,1738203047712,-649.51,0.00016438,2]
[350923802,1738203047723,-500.0,0.00016438,2]
[350923803,1738203047732,-500.0,0.00016438,2]
[350923804,1738203047742,-500.0,0.00016438,2]
[350923805,1738203047751,-150.04215892,0.00016438,2]
[350923806,1738203047761,-500.0,0.00016438,2]
[350923807,1738203047770,-505.76366311,0.00016438,2]
[350923808,1738203047779,-506.23033531,0.00016438,2]
[350923809,1738203047789,-793.31,0.00016438,2]
[350923810,1738203047799,-6371.10826194,0.00016438,2]
[350923811,1738203047814,-2584.09669682,0.00016438,2]
[350923832,1738203855854,166.092601,0.00013973,2]
[350923837,1738204122737,17136.08439956,0.00013,2]
[350923838,1738204122772,20000.0,0.00013,2]
[350923839,1738204122805,2884.98890604,0.00013,2]
[350923909,1738204233038,-506.37706183,0.00015164,2]
[350923911,1738204233048,-502.0,0.00015164,3]
[350923913,1738204233059,-34.82036421,0.00015363,2]
[350923915,1738204233071,-129.92367879,0.00015363,2]
[350923917,1738204233080,-155.064,0.0001562,2]
[350923919,1738204233090,-239.7165967,0.00016273,2]
[350923921,1738204233100,-4321.18815672,0.00016306,2]
[350923923,1738204233111,-16.29282691,0.00016338,2]
[350923928,1738204233148,-166.75554782,0.00016338,2]
[350923930,1738204233160,-899.19385505,0.00016338,2]
[350923932,1738204233175,-300.0,0.00016399,2]
[350923934,1738204233185,-162.1515774,0.000164,2]
[350923936,1738204233195,-433.5948274,0.000164,2]
[350923938,1738204233204,-157.10375,0.000164,2]
[350923940,1738204233214,-358.731488,0.000164,2]
[350923942,1738204233225,-354.285986,0.000164,2]
[350923944,1738204233236,-215.2923755,0.000164,2]
[350923946,1738204233246,-306.6758068,0.000164,2]
[350923948,1738204233259,-317.5126754,0.000164,2]
[350923950,1738204233270,-354.285986,0.000164,2]
[350923952,1738204233279,-354.285986,0.000164,2]
[350923954,1738204233289,-354.285986,0.000164,2]
[350923956,1738204233298,-354.285986,0.000164,2]
[350923958,1738204233308,-354.285986,0.000164,2]
[350923960,1738204233319,-354.285986,0.000164,2]
[350923962,1738204233328,-354.285986,0.000164,2]
[350923964,1738204233339,-352.219747,0.000164,2]
[350923966,1738204233349,-310.0460963,0.000164,2]
[350923968,1738204233359,-354.0685108,0.000164,2]
[350923970,1738204233370,-500.0,0.00016437,2]
[350923972,1738204233380,-500.0,0.00016437,2]
[350923974,1738204233390,-423.06022298,0.00016437,2]
[350923976,1738204233399,-384.58943379,0.00016437,2]
[350923978,1738204233409,-500.0,0.00016437,2]
[350923980,1738204233418,-500.0,0.00016437,2]
[350923982,1738204233429,-281.88209648,0.00016437,2]
[350923984,1738204233439,-500.0,0.00016437,2]
[350923985,1738204233448,-500.0,0.00016437,2]
[350923986,1738204233458,-500.0,0.00016437,2]
[350923987,1738204233468,-500.0,0.00016437,2]
[350923989,1738204233480,-500.0,0.00016437,2]
[350923991,1738204233489,-201.58450931,0.00016437,2]
[350923992,1738204233499,-507.64445088,0.00016438,2]
[350923994,1738204233509,-500.0,0.00016438,2]
[350923996,1738204233519,-500.0,0.00016438,2]
[350923998,1738204233529,-502.07669222,0.00016438,2]
[350924000,1738204233539,-514.43630466,0.00016438,2]
[350924001,1738204233549,-500.0,0.00016438,2]
[350924003,1738204233559,-500.0,0.00016438,2]
[350924005,1738204233569,-505.45379225,0.00016438,2]
[350924007,1738204233580,-613.1011256,0.00016438,2]
[350924008,1738204233590,-516.33338407,0.00016438,2]
[350924010,1738204233600,-501.64220378,0.00016438,2]
[350924012,1738204233610,-522.23935169,0.00016438,2]
[350924014,1738204233619,-505.48167093,0.00016438,2]
[350924016,1738204233629,-509.51007584,0.00016438,2]
[350924017,1738204233639,-519.45911781,0.00016438,2]
[350924019,1738204233649,-511.06558324,0.00016438,2]
[350924021,1738204233659,-505.78234863,0.00016438,2]
[350924023,1738204233669,-500.0,0.00016438,2]
[350924025,1738204233678,-151.0,0.00016438,2]
[350924026,1738204233688,-151.0,0.00016438,2]
[350924028,1738204233698,-151.0,0.00016438,2]
[350924030,1738204233708,-153.006766,0.00016438,2]
[350924032,1738204233724,-500.0,0.00016438,2]
[350924034,1738204233734,-570.61990486,0.00016438,2]
[350924035,1738204233744,-737.31,0.00016438,2]
[350924037,1738204233755,-614.93,0.00016438,2]
[350924039,1738204233766,-500.0,0.00016438,2]
[350924041,1738204233776,-500.0,0.00016438,2]
[350924043,1738204233787,-500.0,0.00016438,2]
[350924045,1738204233797,-500.0,0.00016438,2]
[350924046,1738204233807,-294.35334982,0.00016438,2]
[350924210,1738204238746,-271.19665018,0.00016438,2]
[350924211,1738204238755,-500.0,0.00016438,2]
[350924212,1738204238767,-500.0,0.00016438,2]
[350924213,1738204238776,-511.91158691,0.00016438,2]
[350924214,1738204238786,-505.46909213,0.00016438,2]
[350924215,1738204238796,-500.0,0.00016438,2]
[350924216,1738204238807,-500.0,0.00016438,2]
[350924217,1738204238818,-500.0,0.00016438,2]
[350924218,1738204238828,-500.0,0.00016438,2]
[350924219,1738204238839,-1079.34,0.00016438,2]
[350924220,1738204238851,-518.75053074,0.00016438,2]
[350924221,1738204238860,-500.0,0.00016438,2]
[350924222,1738204238870,-500.0,0.00016438,2]
[350924223,1738204238879,-500.0,0.00016438,2]
[350924225,1738204238889,-515.65472681,0.00016438,2]
[350924226,1738204238898,-514.8881939,0.00016438,2]
[350924227,1738204238907,-500.0,0.00016438,2]
[350924228,1738204238916,-504.4829758,0.00016438,2]
[350924229,1738204238926,-504.28465303,0.00016438,2]
[350924230,1738204238935,-511.62492045,0.00016438,2]
[350924231,1738204238944,-600.55,0.00016438,2]
[350924232,1738204238953,-505.94700493,0.00016438,2]
[350924233,1738204238963,-503.01410512,0.00016438,2]
[350924234,1738204238972,-500.0,0.00016438,2]
[350924235,1738204238982,-515.46842205,0.00016438,2]
[350924236,1738204238991,-500.0,0.00016438,2]
[350924237,1738204239001,-4639.24,0.00016438,2]
[350924238,1738204239010,-500.0,0.00016438,2]
[350924239,1738204239019,-500.0,0.00016438,2]
[350924240,1738204239030,-500.0,0.00016438,2]
[350924241,1738204239039,-2083.06,0.00016438,2]
[350924242,1738204239049,-1314.63,0.00016438,2]
[350924243,1738204239059,-7246.62,0.00016438,2]
[350924244,1738204239068,-500.0,0.00016438,2]
[350924245,1738204239078,-1845.51,0.00016438,2]
[350924246,1738204239087,-508.13076257,0.00016438,2]
[350924247,1738204239097,-803.14,0.00016438,2]
[350924248,1738204239106,-500.0,0.00016438,2]
[350924249,1738204239115,-500.0,0.00016438,2]
[350924250,1738204239125,-563.91,0.00016438,2]
[350924251,1738204239134,-534.32,0.00016438,2]
[350924252,1738204239143,-500.0,0.00016438,2]
[350924253,1738204239152,-541.05,0.00016438,2]
[350924254,1738204239162,-504.48722299,0.00016438,2]
[350924255,1738204239171,-19425.55,0.00016438,2]
[350924256,1738204239181,-1102.16,0.00016438,2]
[350924257,1738204239190,-433.99835834,0.00016438,2]
[350924258,1738204239203,-706.74164166,0.00016438,2]
[350924259,1738204239213,-546.64,0.00016438,2]
[350924260,1738204239223,-558.84978569,0.00016438,2]
[350924261,1738204239235,-173.89021431,0.00016438,2]
[350924262,1738204239245,-752.1031992,0.00016438,2]
[350924263,1738204239262,-708.1868008,0.00016438,2]
[350924264,1738204239271,-9.8327232,0.00016438,2]
[350924265,1738204239358,-494.29805595,0.00016438,2]
[350924266,1738204239367,-907.0,0.00016438,2]
[350924267,1738204239376,-622.45,0.00016438,2]
[350924268,1738204239385,-199.73547491,0.00016438,2]
[350924319,1738204240956,-2078.55452509,0.00016438,2]
[350924321,1738204240966,-500.0,0.00016438,2]
[350924323,1738204240977,-36.70678894,0.00016438,2]
[350924327,1738204241012,-976.68321106,0.00016438,2]
[350924329,1738204241022,-505.14590861,0.00016438,2]
[350924331,1738204241031,-760.26,0.00016438,2]
[350924333,1738204241041,-2166.02,0.00016438,2]
[350924335,1738204241050,-500.0,0.00016438,2]
[350924337,1738204241059,-2258.61,0.00016438,2]
[350924339,1738204241069,-500.0,0.00016438,2]
[350924341,1738204241078,-1134.14,0.00016438,2]
[350924343,1738204241087,-437.09580914,0.00016438,2]
[350924345,1738204241097,-510.74874579,0.00016438,2]
[350924347,1738204241106,-873.79,0.00016438,2]
[350924349,1738204241116,-1102.33,0.00016438,2]
[350924351,1738204241125,-503.15051038,0.00016438,2]
[350924353,1738204241135,-505.02673048,0.00016438,2]
[350924355,1738204241144,-1297.92,0.00016438,2]
[350924357,1738204241153,-500.0,0.00016438,2]
[350924359,1738204241162,-503.91859463,0.00016438,2]
[350924361,1738204241172,-500.0,0.00016438,2]
[350924363,1738204241180,-688.97,0.00016438,2]
[350924365,1738204241190,-151.0,0.00016438,2]
[350924367,1738204241199,-151.0,0.00016438,2]
[350924369,1738204241208,-151.0,0.00016438,2]
[350924371,1738204241218,-151.0,0.00016438,2]
[350924373,1738204241228,-151.0,0.00016438,2]
[350924375,1738204241237,-151.0,0.00016438,2]
[350924377,1738204241247,-282.95668,0.00016438,2]
[350924379,1738204241256,-1069.08,0.00016438,2]
[350924381,1738204241265,-500.0,0.00016438,2]
[350924383,1738204241275,-215.64075749,0.00016438,2]
[350924385,1738204241284,-500.0,0.00016438,2]
[350924387,1738204241294,-634.57665727,0.00016438,2]
[350924389,1738204241303,-508.14565964,0.00016438,2]
[350924391,1738204241313,-502.6505807,0.00016438,2]
[350924393,1738204241323,-7543.81,0.00016438,2]
[350924395,1738204241332,-500.0,0.00016438,2]
[350924397,1738204241341,-484.01619481,0.00016438,2]
[350924399,1738204241351,-4079.94,0.00016438,2]
[350924401,1738204241360,-500.0,0.00016438,2]
[350924402,1738204241369,-509.60370697,0.00016438,2]
[350924405,1738204241379,-502.2756209,0.00016438,2]
[350924406,1738204241389,-2058.34,0.00016438,2]
[350924408,1738204241398,-500.0,0.00016438,2]
[350924410,1738204241407,-3241.74,0.00016438,2]
[350924412,1738204241417,-935.68,0.00016438,2]
[350924414,1738204241426,-500.0,0.00016438,2]
[350924416,1738204241435,-500.0,0.00016438,2]
[350924417,1738204241443,-4445.94,0.00016438,2]
[350924419,1738204241453,-1000.0,0.000165,2]
[350924421,1738204241463,-151.0,0.000165,2]
[350924423,1738204241472,-150.185,0.00016506,2]
[350924425,1738204241481,-161.042,0.00016506,2]
[350924427,1738204241491,-538.814,0.00016506,2]
[350924429,1738204241500,-2043.0,0.00016506,2]
[350924431,1738204241510,-1917.38048072,0.00016506,2]
[350925536,1738204419835,15139.99167322,0.0002,120]
[350925537,1738204465212,500.0,0.000204,120]
[350925538,1738204465798,301.08191726,0.00015101,2]
[350925539,1738204476186,500.0,0.000204,120]
[350925540,1738204485643,500.0,0.000204,120]
[350925541,1738204494181,500.0,0.000204,120]
[350925542,1738204504215,500.0,0.000204,120]
[350925543,1738204530831,500.0,0.000204,120]
[350925545,1738204540090,500.0,0.000204,120]
[350925546,1738204566996,500.0,0.0002045,120]
[350925547,1738204577908,500.0,0.0002045,120]
[350925548,1738204594996,500.0,0.0002045,120]
[350925549,1738204606175,500.0,0.0002045,120]
[350925550,1738204614169,500.0,0.0002045,120]
[350925551,1738204622713,500.0,0.0002045,120]
[350925552,1738204644114,500.0,0.0002045,120]
[350925553,1738204653151,500.0,0.0002045,120]
[350925554,1738204660909,500.0,0.0002045,120]
[350925555,1738204682480,500.0,0.0002045,120]
[350925556,1738204694605,500.0,0.0002045,120]